bitfinex/quotes_BTCUSD_20251116
["timestamp","ask_amount","ask_price","bid_price","bid_amount"]
[1763255142682,0.08887913,95273.0,95268.0,0.20993408]
[1763255142890,0.08887913,95273.0,95271.0,0.20992642]
[1763255143506,0.20992605,95272.0,95266.0,4.522e-05]
[1763255144082,0.29880409,95273.0,95266.0,4.522e-05]
[1763255144233,0.2099258,95272.0,95269.0,0.20993109]
[1763255144437,0.08887913,95273.0,95266.0,4.522e-05]
[1763255144651,0.08887913,95273.0,95271.0,0.20992673]
[1763255145015,0.08887913,95273.0,95271.0,0.22207673]
[1763255145841,0.03235,95301.0,95272.0,0.02432]
[1763255146041,0.2098991,95286.0,95282.0,0.01215]
[1763255146245,0.323,95287.0,95283.0,0.20990055]
[1763255146452,0.20989662,95285.0,95282.0,0.01215]
[1763255146670,0.20989919,95284.0,95282.0,0.01215]
[1763255147028,0.323,95287.0,95282.0,0.01215]
[1763255147241,0.08887913,95288.0,95285.0,0.20989557]
[1763255147242,0.41187913,95288.0,95285.0,0.20989557]
[1763255147443,0.41187913,95288.0,95286.0,0.20989248]
[1763255147645,0.41187913,95288.0,95286.0,0.20989358]
[1763255147817,0.41187913,95288.0,95286.0,0.20989426]
[1763255148786,0.41187913,95288.0,95282.0,0.01215]
[1763255148990,0.20989808,95285.0,95282.0,0.01215]
[1763255149191,0.41187913,95288.0,95284.0,0.20989863]
[1763255149610,0.20989291,95287.0,95284.0,0.20989878]
[1763255149838,0.41187913,95288.0,95282.0,0.01215]
[1763255150017,0.62177,95288.0,95284.0,0.20989411]
[1763255150224,0.20989222,95287.0,95282.0,0.01215]
[1763255150446,0.41187913,95288.0,95285.0,0.20989531]
[1763255150814,0.62176937,95288.0,95284.0,0.20989822]
[1763255151017,0.20989236,95287.0,95284.0,0.20989822]
[1763255151217,0.20989689,95285.0,95282.0,0.01215]
[1763255151482,0.20990103,95283.0,95282.0,0.01215]
[1763255152014,0.41187913,95288.0,95285.0,0.20989637]
[1763255152431,0.20989819,95285.0,95269.0,0.02432]
[1763255152636,0.20990323,95282.0,95276.0,0.20991505]
[1763255152837,0.00888,95286.0,95273.0,0.02432]
[1763255153093,0.209901,95285.0,95281.0,0.20990358]
[1763255153474,0.20990114,95283.0,95280.0,0.20990332]
[1763255153673,0.20990236,95283.0,95272.0,0.23096481]
[1763255153856,0.20991892,95275.0,95273.0,0.02254609]
[1763255154064,0.2099249,95273.0,95264.0,0.01215]
[1763255154264,0.08887913,95272.0,95267.0,0.02255363]
[1763255154462,0.08887913,95272.0,95268.0,0.02255363]
[1763255154738,0.08887913,95272.0,95269.0,0.02255363]
[1763255154945,0.08887913,95272.0,95260.0,0.02819204]
[1763255154946,0.20993628,95267.0,95260.0,0.02819204]
[1763255155147,0.20993628,95267.0,95266.0,0.02259951]
[1763255155837,0.20992509,95273.0,95269.0,0.20993176]
[1763255156053,0.08887913,95270.0,95268.0,0.20993314]
[1763255156264,0.08887913,95270.0,95269.0,0.02256179]
[1763255156884,0.2988088,95270.0,95269.0,0.04360179]
[1763255157008,0.08887913,95270.0,95269.0,0.04360179]
[1763255157208,0.2988088,95270.0,95269.0,0.04360179]
[1763255157616,0.3138388,95270.0,95269.0,0.04360179]
[1763255157950,0.20993187,95269.0,95266.0,0.02108522]
[1763255158153,0.20993408,95268.0,95267.0,0.02258463]
[1763255160030,0.22496408,95268.0,95267.0,0.02258463]
[1763255160204,0.54796408,95268.0,95267.0,0.02258463]
[1763255160615,0.323,95267.0,95266.0,4.522e-05]
[1763255160815,0.33803,95267.0,95266.0,4.522e-05]
[1763255161769,0.35762885,95267.0,95266.0,4.522e-05]
[1763255162508,0.35862885,95267.0,95266.0,4.522e-05]
[1763255164649,0.40204759,95267.0,95266.0,4.522e-05]
[1763255164838,0.50571697,95267.0,95266.0,4.522e-05]
[1763255165649,0.40204759,95267.0,95266.0,4.522e-05]
[1763255165826,0.40104759,95267.0,95266.0,4.522e-05]
[1763255166053,0.40104759,95267.0,95266.0,0.00204522]
[1763255166260,0.53301564,95231.0,95230.0,0.02261163]
[1763255166507,0.53301564,95231.0,95230.0,0.00013562]
[1763255166748,0.54927564,95231.0,95230.0,0.00013562]
[1763255166949,0.6577094,95231.0,95230.0,0.00013562]
[1763255167389,0.74821515,95231.0,95230.0,0.00013562]
[1763255167616,0.6577094,95231.0,95230.0,0.00013562]
[1763255168334,0.70112814,95231.0,95230.0,0.00013562]
[1763255168540,0.70212814,95231.0,95230.0,0.00013562]
[1763255168744,0.70112814,95231.0,95230.0,0.00013562]
[1763255168885,0.70112814,95231.0,95230.0,0.00213562]
[1763255169301,0.6577094,95231.0,95230.0,0.00213562]
[1763255171155,0.3347094,95231.0,95230.0,0.00213562]
[1763255171499,0.6577094,95231.0,95230.0,0.00213562]
[1763255171879,0.3347094,95231.0,95230.0,0.00213562]
[1763255172396,0.6577094,95231.0,95230.0,0.00213562]
[1763255172606,0.76137878,95231.0,95230.0,0.00213562]
[1763255172830,0.6577094,95231.0,95230.0,0.00213562]
[1763255177097,0.66821249,95231.0,95230.0,0.00213562]
[1763255180441,0.32895249,95231.0,95230.0,0.00213562]
[1763255180646,0.10843376,95231.0,95230.0,0.00213562]
[1763255181069,0.08887913,95231.0,95230.0,0.00213562]
[1763255181523,0.41187913,95231.0,95230.0,0.00213562]
[1763255181726,0.46838024,95231.0,95230.0,0.00213562]
[1763255181931,0.48784438,95231.0,95230.0,0.00213562]
[1763255182696,0.01946414,95231.0,95230.0,0.00213562]
[1763255182897,0.01946414,95231.0,95230.0,0.00013562]
[1763255182898,0.10834327,95231.0,95230.0,0.00013562]
[1763255183080,0.43134327,95231.0,95230.0,0.00013562]
[1763255183266,0.43234327,95231.0,95230.0,0.00013562]
[1763255183470,0.43134327,95231.0,95230.0,0.00013562]
[1763255183880,0.43234327,95231.0,95230.0,0.00013562]
[1763255184107,0.43134327,95231.0,95230.0,0.00013562]
[1763255184310,0.43234327,95231.0,95230.0,0.00013562]
[1763255184511,0.44775327,95231.0,95230.0,0.00013562]
[1763255184892,0.43234327,95231.0,95230.0,0.00013562]
[1763255185554,0.10934327,95231.0,95230.0,0.00013562]
[1763255185730,0.10934327,95231.0,95230.0,0.02333562]
[1763255185927,0.08987913,95231.0,95230.0,0.02333562]
[1763255186132,0.08987913,95231.0,95230.0,0.23335347]
[1763255187264,0.001,95231.0,95230.0,0.21015347]
[1763255187459,0.001,95231.0,95230.0,0.2327237]
[1763255189092,0.08887913,95253.0,95239.0,0.02842]
[1763255189336,0.20998519,95245.0,95241.0,0.20999191]
[1763255189510,0.20998257,95246.0,95242.0,0.02257023]
[1763255189719,0.20998257,95246.0,95243.0,0.02257023]
[1763255189925,0.20998257,95246.0,95244.0,0.02257023]
[1763255190133,0.20997863,95248.0,95245.0,0.02257023]
[1763255190134,0.20998109,95247.0,95245.0,0.02257023]
[1763255190327,0.20998109,95247.0,95246.0,0.02257023]
[1763255190880,0.21000021,95238.0,95236.0,0.02823851]
[1763255191084,0.29888176,95237.0,95235.0,0.02823851]
[1763255191366,0.29888176,95237.0,95236.0,0.02258634]
[1763255192440,0.08887913,95237.0,95236.0,0.02258634]
[1763255192811,0.29888154,95237.0,95236.0,0.02258634]
[1763255193006,0.08987913,95237.0,95236.0,0.02258634]
[1763255196045,0.001,95237.0,95236.0,0.23259096]
[1763255197148,0.08887913,95238.0,95237.0,0.21000241]
[1763255197358,0.08887913,95238.0,95237.0,0.23258875]
[1763255198389,0.08887913,95238.0,95237.0,0.02258634]
[1763255198594,0.29887934,95238.0,95237.0,0.02258634]
[1763255198794,0.29987934,95238.0,95237.0,0.02258634]
[1763255200499,0.08987913,95238.0,95237.0,0.02258634]
[1763255200700,0.29987934,95238.0,95237.0,0.02258634]
[1763255202533,0.29887934,95238.0,95237.0,0.02258634]
[1763255202979,0.29887934,95238.0,95230.0,0.00013562]
[1763255202980,0.21001564,95231.0,95230.0,0.00013562]
[1763255203248,0.21001564,95231.0,95230.0,0.02274465]
[1763255204532,0.22559564,95231.0,95230.0,0.02274465]
[1763255205780,0.22559564,95231.0,95230.0,0.00013562]
[1763255205781,0.54859564,95231.0,95230.0,0.00013562]
[1763255206607,0.54959564,95231.0,95230.0,0.00013562]
[1763255206807,0.53401564,95231.0,95230.0,0.00013562]
[1763255207907,0.53301564,95231.0,95230.0,0.00013562]
[1763255208108,0.53401564,95231.0,95230.0,0.00013562]
[1763255209034,0.001,95231.0,95230.0,0.23279167]
[1763255209803,0.001,95231.0,95230.0,0.26105296]
[1763255210240,0.001,95231.0,95230.0,0.23279167]
[1763255210995,0.08887913,95252.0,95250.0,0.20997233]
[1763255211260,0.08887913,95252.0,95244.0,0.01514]
[1763255211460,0.08887913,95252.0,95251.0,0.01127]
[1763255211674,0.29884998,95252.0,95251.0,0.03391726]
[1763255212172,0.08887913,95252.0,95251.0,0.03391726]
[1763255212394,0.08987913,95252.0,95251.0,0.03391726]
[1763255212595,0.08887913,95252.0,95251.0,0.03391726]
[1763255213548,0.323,95255.0,95252.0,0.20996934]
[1763255213751,0.323,95255.0,95254.0,0.20996493]
[1763255213955,0.20993212,95269.0,95260.0,0.01514]
[1763255214183,0.20994289,95264.0,95263.0,0.02641]
[1763255214557,0.20994059,95266.0,95263.0,0.04905741]
[1763255214753,0.53293408,95269.0,95264.0,0.02264741]
[1763255215105,0.20994289,95264.0,95263.0,0.01127]
[1763255215318,0.20994289,95264.0,95263.0,0.03404935]
[1763255215668,0.20994289,95264.0,95263.0,0.03604935]
[1763255216298,0.20994069,95265.0,95263.0,0.01340562]
[1763255216535,0.20993863,95266.0,95263.0,0.2233503]
[1763255216734,0.20994098,95265.0,95263.0,0.01140562]
[1763255216958,0.20994289,95264.0,95263.0,0.01140562]
[1763255217197,0.42237561,95270.0,95263.0,0.2233506]
[1763255217373,0.20994066,95266.0,95263.0,0.01140562]
[1763255217571,0.20994289,95264.0,95263.0,0.01140562]
[1763255217780,0.20994289,95264.0,95263.0,0.01340562]
[1763255217973,0.20994289,95264.0,95263.0,0.01140562]
[1763255218330,0.20994289,95264.0,95263.0,0.01240562]
[1763255218524,0.20994289,95264.0,95263.0,0.01140562]
[1763255219640,0.20993638,95267.0,95263.0,0.01140562]
[1763255219839,0.20994289,95264.0,95263.0,0.01140562]
[1763255219964,0.20994289,95264.0,95263.0,0.01340562]
[1763255220156,0.20994289,95264.0,95263.0,0.01140562]
[1763255220581,0.20994289,95264.0,95263.0,0.01340562]
[1763255220795,0.20994289,95264.0,95263.0,0.01140562]
[1763255221014,0.54852289,95264.0,95263.0,0.00013562]
[1763255221372,0.54852289,95264.0,95263.0,0.00213562]
[1763255221577,0.54852289,95264.0,95263.0,0.00013562]
[1763255221786,0.323,95264.0,95263.0,0.00213562]
[1763255221967,0.53294289,95264.0,95263.0,0.00213562]
[1763255222316,0.54804289,95264.0,95263.0,0.00213562]
[1763255222949,0.53294289,95264.0,95263.0,0.00013562]
[1763255223151,0.323,95264.0,95263.0,0.00213562]
[1763255223377,0.08887913,95270.0,95263.0,0.02495562]
[1763255223557,0.323,95269.0,95267.0,0.20993553]
[1763255223751,0.323,95269.0,95265.0,0.20993857]
[1763255224013,0.323,95269.0,95268.0,0.20993408]
[1763255224228,0.20991617,95277.0,95272.0,0.20992522]
[1763255224436,0.00618,95289.0,95263.0,0.00013562]
[1763255224437,0.20991005,95280.0,95277.0,0.01139]
[1763255224658,0.20991177,95279.0,95277.0,0.01139]
[1763255224826,0.323,95278.0,95277.0,0.01139]
[1763255225209,0.20991177,95279.0,95277.0,0.01139]
[1763255225612,0.323,95278.0,95277.0,0.01139]
[1763255226565,0.33530762,95287.0,95277.0,0.01139]
[1763255226768,0.33530762,95287.0,95286.0,0.01504]
[1763255226978,0.29877049,95288.0,95286.0,0.02643]
[1763255227433,0.41187913,95288.0,95287.0,0.02282]
[1763255227649,0.20989222,95287.0,95286.0,0.01139]
[1763255227822,0.62177045,95288.0,95286.0,0.01139]
[1763255228190,0.62177045,95288.0,95286.0,0.01239]
[1763255228384,0.08887913,95288.0,95286.0,0.01239]
[1763255228593,0.323,95289.0,95287.0,0.23271101]
[1763255228815,0.08887913,95288.0,95287.0,0.02282]
[1763255229526,0.08887913,95288.0,95272.0,0.20992512]
[1763255229527,0.20990866,95280.0,95275.0,0.02282]
[1763255229727,0.33530762,95287.0,95278.0,0.20991204]
[1763255229909,0.20990506,95282.0,95277.0,0.24412424]
[1763255230112,0.33530762,95287.0,95277.0,0.24412424]
[1763255230113,0.20990881,95280.0,95277.0,0.03421]
[1763255230343,0.2099107,95279.0,95277.0,0.03421]
[1763255230551,0.2099107,95279.0,95277.0,0.01139]
[1763255230552,0.20991026,95279.0,95277.0,0.01139]
[1763255231302,0.20992526,95272.0,95271.0,0.01139]
[1763255231519,0.20992526,95272.0,95271.0,0.03396105]
[1763255231919,0.20992183,95274.0,95271.0,0.03396105]
[1763255232123,0.20992183,95274.0,95272.0,0.02257105]
[1763255232328,0.20992183,95274.0,95273.0,0.02257105]
[1763255233036,0.001,95274.0,95273.0,0.02257105]
[1763255233227,0.20992016,95275.0,95273.0,0.02257105]
[1763255233431,0.33530762,95283.0,95276.0,0.20991604]
[1763255233635,0.20990884,95280.0,95275.0,0.20991718]
[1763255233860,0.20992348,95273.0,95271.0,0.01139]
[1763255234067,0.20992348,95273.0,95272.0,0.02256948]
[1763255234306,0.20992348,95273.0,95271.0,0.01139]
[1763255234618,0.20992377,95273.0,95271.0,0.01139]
[1763255235058,0.20991572,95277.0,95271.0,0.01139]
[1763255235227,0.20991572,95277.0,95272.0,0.02257585]
[1763255235420,0.20991783,95276.0,95271.0,0.01139]
[1763255235607,0.20992,95275.0,95272.0,0.02257596]
[1763255235805,0.20992208,95274.0,95271.0,0.01139]
[1763255236216,0.20992208,95274.0,95272.0,0.0225833]
[1763255236411,0.20992208,95274.0,95271.0,0.01139]
[1763255236596,0.08887913,95273.0,95272.0,0.0225833]
[1763255236993,0.20992526,95272.0,95263.0,0.02117562]
[1763255237232,0.20992809,95271.0,95264.0,0.02258403]
[1763255237475,0.20993061,95270.0,95266.0,0.20993689]
[1763255237688,0.20993228,95269.0,95267.0,0.02258403]
[1763255237892,0.6341113,95273.0,95268.0,0.02258403]
[1763255238082,0.001,95274.0,95273.0,0.23754306]
[1763255238310,0.001,95274.0,95273.0,0.02762]
[1763255238460,0.20991982,95275.0,95273.0,0.02762]
[1763255238682,0.20991982,95275.0,95273.0,0.01162]
[1763255239406,0.001,95274.0,95265.0,0.23398907]
[1763255239613,0.20993041,95270.0,95266.0,0.23255539]
[1763255239813,0.08887913,95272.0,95267.0,0.23255359]
[1763255240018,0.08887913,95272.0,95264.0,0.02831114]
[1763255240019,0.001,95275.0,95273.0,0.2375429]
[1763255240223,0.20991329,95278.0,95274.0,0.23254772]
[1763255240421,0.20991449,95277.0,95274.0,0.20991968]
[1763255241410,0.323,95279.0,95275.0,0.02263238]
[1763255241642,0.323,95279.0,95276.0,0.02405]
[1763255241847,0.20991345,95278.0,95276.0,0.02405]
[1763255242069,0.323,95279.0,95276.0,0.02405]
[1763255242280,0.001,95277.0,95276.0,0.23396644]
[1763255242532,0.20991425,95277.0,95276.0,0.02263855]
[1763255243821,0.20991204,95278.0,95276.0,0.02263855]
[1763255244034,0.001,95279.0,95277.0,0.02263855]
[1763255244245,0.20991538,95277.0,95274.0,0.20991907]
[1763255244452,0.20991538,95277.0,95275.0,0.02264692]
[1763255244604,0.20991538,95277.0,95276.0,0.02264692]
[1763255244808,0.001,95277.0,95276.0,0.2325624]
[1763255245020,0.08887913,95305.0,95276.0,0.02264692]
[1763255245221,0.29876704,95289.0,95287.0,0.016]
[1763255245459,0.62176704,95289.0,95288.0,0.02264692]
[1763255245974,0.62829704,95289.0,95288.0,0.02264692]
[1763255246405,0.62176704,95289.0,95288.0,0.02264692]
[1763255247577,0.41187913,95289.0,95288.0,0.02264692]
[1763255247783,0.20987686,95294.0,95289.0,0.02405]
[1763255248001,0.2098794,95293.0,95290.0,0.23253231]
[1763255248180,0.60313256,95298.0,95291.0,0.02264692]
[1763255248367,0.60313256,95298.0,95292.0,0.02264692]
[1763255248562,0.20987537,95295.0,95293.0,0.02264692]
[1763255248808,0.20987537,95295.0,95284.0,0.02831114]
[1763255248809,0.20987537,95295.0,95294.0,0.02264692]
[1763255249008,0.20987537,95295.0,95294.0,0.03864692]
[1763255249249,0.20958851,95295.0,95294.0,0.03864692]
[1763255249587,0.20958851,95295.0,95294.0,0.03878254]
[1763255249804,0.20958851,95295.0,95294.0,0.02278254]
[1763255251071,0.20987491,95297.0,95294.0,0.02378254]
[1763255251272,0.33349317,95300.0,95295.0,0.02263931]
[1763255251679,0.33349317,95300.0,95295.0,0.23369459]
[1763255251680,0.323,95300.0,95295.0,0.23369459]
[1763255251890,0.20986802,95298.0,95296.0,0.04645914]
[1763255252097,0.323,95298.0,95297.0,0.02263914]
[1763255252519,0.20985957,95302.0,95298.0,0.0115]
[1763255252621,0.20985698,95303.0,95299.0,0.04645914]
[1763255252855,0.0114,95317.0,95298.0,0.22136799]
[1763255252856,0.20984484,95309.0,95300.0,0.02382]
[1763255253059,0.01961158,95308.0,95307.0,0.20984817]
[1763255253269,0.20982175,95319.0,95309.0,0.20984275]
[1763255253483,0.5328283,95317.0,95316.0,0.0154]
[1763255253692,0.55244481,95317.0,95316.0,0.0154]
[1763255253906,0.20984273,95310.0,95308.0,0.02382]
[1763255254138,0.20984597,95308.0,95302.0,0.02382]
[1763255254347,0.20984597,95308.0,95303.0,0.02263762]
[1763255254551,0.20985037,95306.0,95304.0,0.02263762]
[1763255254754,0.20985037,95306.0,95305.0,0.02263762]
[1763255255372,0.08887913,95309.0,95305.0,0.02263762]
[1763255255373,0.20985028,95307.0,95305.0,0.02263762]
[1763255255634,0.20985028,95307.0,95306.0,0.02263762]
[1763255257730,0.20985028,95307.0,95306.0,0.02463762]
[1763255258866,0.20985028,95307.0,95306.0,0.002]
[1763255259902,0.20985918,95302.0,95301.0,0.0115]
[1763255260106,0.20985918,95302.0,95301.0,0.0341144]
[1763255263360,0.20984846,95307.0,95303.0,0.20985656]
[1763255263536,0.20984597,95308.0,95302.0,0.23367918]
[1763255263741,0.2098493,95307.0,95304.0,0.20985471]
[1763255263940,0.20985257,95305.0,95302.0,0.02382]
[1763255264140,0.08887913,95309.0,95303.0,0.02260806]
[1763255264386,0.20985918,95302.0,95301.0,0.0115]
[1763255264594,0.20985918,95302.0,95301.0,0.03410811]
[1763255264725,0.209857,95303.0,95301.0,0.03410811]
[1763255264929,0.209857,95303.0,95302.0,0.02260811]
[1763255265323,0.20984643,95308.0,95304.0,0.20985478]
[1763255265526,0.20984915,95307.0,95303.0,0.02382]
[1763255265710,0.20984686,95308.0,95305.0,0.20985194]
[1763255266268,0.08887913,95309.0,95306.0,0.20985022]
[1763255266483,0.08887913,95309.0,95307.0,0.20984755]
[1763255266693,0.08887913,95309.0,95306.0,0.20985022]
[1763255267039,0.29872406,95309.0,95306.0,0.20985022]
[1763255267653,0.08887913,95309.0,95307.0,0.20984669]
[1763255269215,0.08887913,95309.0,95303.0,0.02382]
[1763255269414,0.20984817,95307.0,95306.0,0.001]
[1763255269597,0.2987232,95309.0,95303.0,0.02382]
[1763255269802,0.2987232,95309.0,95303.0,0.23367687]
[1763255269803,0.2098512,95306.0,95303.0,0.23367687]
[1763255270249,0.08887913,95309.0,95304.0,0.02382]
[1763255270445,0.08887913,95309.0,95306.0,0.20984978]
[1763255270689,0.62172338,95309.0,95306.0,0.21184978]
[1763255270895,0.20984635,95308.0,95305.0,0.20985247]
[1763255271008,0.20985037,95306.0,95304.0,0.02382]
[1763255271215,0.20985257,95305.0,95304.0,0.02382]
[1763255272124,0.20985059,95306.0,95304.0,0.02382]
[1763255272325,0.20984791,95308.0,95304.0,0.23367279]
[1763255272526,0.20984791,95308.0,95305.0,0.20985143]
[1763255272737,0.20984874,95307.0,95304.0,0.23567279]
[1763255273158,0.20984874,95307.0,95304.0,0.23367279]
[1763255273383,0.20984874,95307.0,95305.0,0.02264274]
[1763255273575,0.20984874,95307.0,95304.0,0.23367279]
[1763255273777,0.20985037,95306.0,95305.0,0.02264274]
[1763255274186,0.20985037,95306.0,95305.0,0.04646274]
[1763255274727,0.08887913,95309.0,95305.0,0.25631531]
[1763255274964,0.20985037,95306.0,95305.0,0.02382]
[1763255275203,0.20984597,95308.0,95305.0,0.04647242]
[1763255275503,0.20984817,95307.0,95306.0,0.03415242]
[1763255275714,0.20984597,95308.0,95306.0,0.03415242]
[1763255275887,0.20984817,95307.0,95306.0,0.0115]
[1763255276102,0.20984597,95308.0,95306.0,0.03415674]
[1763255276447,0.20984597,95308.0,95307.0,0.02265674]
[1763255276448,0.53284597,95308.0,95307.0,0.02265674]
[1763255277290,0.323,95308.0,95307.0,0.02265674]
[1763255278805,0.323,95308.0,95307.0,0.02465674]
[1763255279045,0.323,95308.0,95307.0,0.23450491]
[1763255281031,0.47189969,95317.0,95313.0,0.20983294]
[1763255281032,0.26207203,95317.0,95313.0,0.20983294]
[1763255281230,0.26207203,95317.0,95307.0,0.02465674]
[1763255281231,0.53282615,95317.0,95316.0,0.0115]
[1763255281436,0.55246676,95317.0,95316.0,0.0115]
[1763255281611,0.53282615,95317.0,95316.0,0.03417941]
[1763255282252,0.323,95317.0,95316.0,0.03417941]
[1763255282455,0.323,95317.0,95316.0,0.03517941]
[1763255282877,0.53282615,95317.0,95316.0,0.03517941]
[1763255284335,0.53282615,95317.0,95316.0,0.03417941]
[1763255284682,0.53282615,95317.0,95316.0,0.03517941]
[1763255284891,0.53282615,95317.0,95316.0,0.03417941]
[1763255285089,0.54840615,95317.0,95316.0,0.02267941]
[1763255285464,0.53282615,95317.0,95316.0,0.02367941]
[1763255285667,0.323,95317.0,95316.0,0.02367941]
[1763255286300,0.53282615,95317.0,95316.0,0.02367941]
[1763255286512,0.35451904,95317.0,95316.0,0.23350777]
[1763255286738,0.35451904,95317.0,95316.0,0.02367941]
[1763255287179,0.03151904,95317.0,95316.0,0.23350777]
[1763255287392,0.01068877,95340.0,95316.0,0.23350777]
[1763255287393,0.2727608,95340.0,95325.0,0.02676]
[1763255287611,0.03151338,95327.0,95326.0,0.04731941]
[1763255287837,0.0002,95340.0,95339.0,0.20977774]
[1763255288111,0.0002,95340.0,95339.0,0.04943941]
[1763255288326,0.03171,95340.0,95339.0,0.04943941]
[1763255288560,0.03171,95340.0,95339.0,0.04957503]
[1763255288800,0.0002,95340.0,95339.0,0.03438503]
[1763255289001,0.0002,95340.0,95339.0,0.03538503]
[1763255289217,0.0002,95340.0,95339.0,0.0637055]
[1763255289419,0.0002,95340.0,95339.0,0.12721892]
[1763255290676,0.0002,95340.0,95339.0,0.12821892]
[1763255290878,0.0002,95340.0,95339.0,0.12721892]
[1763255291296,0.0012,95340.0,95339.0,0.12721892]
[1763255292485,0.0012,95340.0,95339.0,0.16479391]
[1763255292690,0.0012,95340.0,95339.0,0.12721892]
[1763255293494,0.0012,95340.0,95339.0,0.16477247]
[1763255294494,0.0012,95340.0,95339.0,0.12721892]
[1763255297345,0.0012,95340.0,95339.0,0.14819669]
[1763255297548,0.0002,95360.0,95359.0,0.20973374]
[1763255297846,0.0002,95360.0,95359.0,0.22499374]
[1763255298070,0.0002,95360.0,95359.0,0.23223159]
[1763255298889,0.0002,95360.0,95359.0,0.23323159]
[1763255299860,0.0002,95360.0,95359.0,0.23223159]
[1763255300275,0.0022,95360.0,95359.0,0.02249785]
[1763255300484,0.0002,95360.0,95359.0,0.02249785]
[1763255300899,0.0002,95360.0,95358.0,0.012]
[1763255301104,0.20993308,95360.0,95358.0,0.012]
[1763255301312,0.0012,95360.0,95359.0,0.02479]
[1763255301770,0.0002,95360.0,95359.0,0.02479]
[1763255301915,0.0012,95360.0,95359.0,0.02479]
[1763255302544,0.0012,95360.0,95359.0,0.23452374]
[1763255302987,0.0012,95360.0,95359.0,0.20973374]
[1763255303572,0.0002,95360.0,95359.0,0.23221151]
[1763255303754,0.0012,95360.0,95359.0,0.23221151]
[1763255305017,0.0012,95360.0,95359.0,0.28162666]
[1763255305440,0.0022,95360.0,95359.0,0.28162666]
[1763255306086,0.0012,95360.0,95359.0,0.28162666]
[1763255306514,0.0002,95360.0,95359.0,0.23221151]
[1763255306726,0.0012,95360.0,95359.0,0.23221151]
[1763255309661,0.0012,95360.0,95359.0,0.02247777]
[1763255309874,0.0012,95360.0,95359.0,0.25700151]
[1763255310078,0.21093154,95360.0,95359.0,0.02247777]
[1763255310893,0.0012,95360.0,95359.0,0.02247777]
[1763255311097,0.0012,95360.0,95359.0,0.23221151]
[1763255311324,0.21093154,95360.0,95359.0,0.02247777]
[1763255312352,0.0012,95360.0,95359.0,0.02247777]
[1763255312505,0.0012,95360.0,95359.0,0.23221151]
[1763255313547,0.0012,95360.0,95359.0,0.26033325]
[1763255314330,0.0012,95360.0,95359.0,0.23221151]
[1763255315346,0.0012,95360.0,95359.0,0.26976506]
[1763255315732,0.0012,95360.0,95359.0,0.06003132]
[1763255316193,0.0012,95360.0,95359.0,0.25318488]
[1763255316390,0.0012,95360.0,95359.0,0.23221151]
[1763255317205,0.0012,95360.0,95359.0,0.28162666]
[1763255317386,0.0002,95370.0,95369.0,0.20971175]
[1763255317544,0.0002,95370.0,95369.0,0.29735467]
[1763255317740,0.0002,95370.0,95369.0,0.28160467]
[1763255317987,0.0002,95370.0,95369.0,0.23218952]
[1763255318404,0.0012,95370.0,95369.0,0.23218952]
[1763255318580,0.0002,95380.0,95379.0,0.20968976]
[1763255318783,0.00065227,95380.0,95379.0,0.24791753]
[1763255318990,0.00065227,95380.0,95379.0,0.23216753]
[1763255319857,0.00065227,95380.0,95379.0,0.02247777]
[1763255320062,0.00065227,95380.0,95379.0,0.23216753]
[1763255320896,0.00165227,95380.0,95379.0,0.23216753]
[1763255321139,0.00165227,95380.0,95379.0,0.25583753]
[1763255321943,0.00165227,95380.0,95379.0,0.23216753]
[1763255322934,0.21133983,95380.0,95379.0,0.02247777]
[1763255324336,0.23096605,95380.0,95379.0,0.02247777]
[1763255325603,0.23749605,95380.0,95379.0,0.02247777]
[1763255325936,0.23649605,95380.0,95379.0,0.02247777]
[1763255326143,0.23749605,95380.0,95379.0,0.02247777]
[1763255330072,0.57573605,95380.0,95379.0,0.05076544]
[1763255330285,0.57573605,95380.0,95379.0,0.02247777]
[1763255331008,0.57573605,95380.0,95366.0,0.02828767]
[1763255331009,0.53271614,95367.0,95366.0,0.02828767]
[1763255331217,0.53272934,95361.0,95360.0,0.02828767]
[1763255331413,0.20976968,95343.0,95341.0,0.04987095]
[1763255331544,0.29864881,95343.0,95342.0,0.02262043]
[1763255332372,0.62164881,95343.0,95342.0,0.02262043]
[1763255332545,0.43194141,95343.0,95342.0,0.02260707]
[1763255332789,0.64271034,95343.0,95342.0,0.02260707]
[1763255332956,0.64371034,95343.0,95342.0,0.02260707]
[1763255333345,0.20978874,95334.0,95332.0,0.01217]
[1763255333586,0.20978874,95334.0,95333.0,0.02259252]
[1763255333988,0.20978874,95334.0,95333.0,0.04626252]
[1763255334187,0.20977928,95339.0,95335.0,0.20978602]
[1763255334367,0.20977928,95339.0,95336.0,0.02259252]
[1763255334569,0.40833112,95343.0,95337.0,0.02259252]
[1763255334748,0.00145199,95343.0,95341.0,0.20977284]
[1763255334959,0.00145199,95343.0,95342.0,0.05049936]
[1763255335153,0.00045199,95343.0,95342.0,0.05049936]
[1763255335799,0.00145199,95343.0,95342.0,0.05049936]
[1763255336028,0.00045199,95343.0,95342.0,0.05049936]
[1763255336583,0.00145199,95343.0,95342.0,0.05049936]
[1763255337399,0.00245199,95343.0,95342.0,0.05049936]
[1763255339160,0.00245199,95343.0,95342.0,0.05572647]
[1763255339951,0.00145199,95343.0,95342.0,0.05572647]
[1763255340154,0.00245199,95343.0,95342.0,0.08400492]
[1763255340330,0.00145199,95343.0,95342.0,0.05572647]
[1763255340693,0.00245199,95343.0,95342.0,0.05572647]
[1763255341294,0.00245199,95343.0,95342.0,0.2654976]
[1763255341488,0.00245199,95343.0,95342.0,0.24452049]
[1763255342882,0.21222092,95343.0,95342.0,0.06293896]
[1763255343114,0.21222092,95343.0,95342.0,0.02257936]
[1763255343314,0.20978874,95334.0,95333.0,0.02104]
[1763255343512,0.20978874,95334.0,95333.0,0.02255174]
[1763255344870,0.20979094,95333.0,95332.0,0.01217]
[1763255345102,0.20979094,95333.0,95332.0,0.03471899]
[1763255345305,0.20978626,95336.0,95333.0,0.20979044]
[1763255345514,0.20977113,95342.0,95341.0,0.01579]
[1763255345732,0.03196001,95343.0,95338.0,0.20977992]
[1763255345938,0.03196001,95343.0,95342.0,0.20977113]
[1763255346143,0.03196001,95343.0,95341.0,0.23277316]
[1763255346352,0.2417292,95343.0,95341.0,0.23277316]
[1763255346493,0.21022118,95343.0,95341.0,0.23277316]
[1763255346732,0.00045199,95343.0,95342.0,0.20977113]
[1763255346907,0.00145199,95343.0,95342.0,0.20977113]
[1763255347426,0.20977113,95342.0,95341.0,0.023]
[1763255347688,0.00145199,95343.0,95342.0,0.24478113]
[1763255347893,0.21222092,95343.0,95342.0,0.0508]
[1763255348204,0.21022092,95343.0,95342.0,0.0508]
[1763255348408,0.00045199,95343.0,95342.0,0.23757113]
[1763255348610,0.00145199,95343.0,95342.0,0.23757113]
[1763255349044,0.00045199,95343.0,95342.0,0.22178113]